bitfinex/quotes_BTCUSD_20250825
["timestamp","ask_amount","ask_price","bid_price","bid_amount"]
[1756088278009,0.00047857,113630.0,113620.0,1.5182994]
[1756088278226,0.00047857,113630.0,113620.0,1.5162994]
[1756088278442,0.00047857,113630.0,113620.0,0.82664074]
[1756088278706,0.00047857,113630.0,113620.0,1.5182994]
[1756088278918,0.00047857,113630.0,113620.0,1.5172994]
[1756088279330,0.00047857,113630.0,113620.0,1.5192994]
[1756088279966,0.00047857,113630.0,113620.0,1.5182994]
[1756088280173,0.00047857,113630.0,113620.0,1.5202994]
[1756088282238,0.00047857,113630.0,113620.0,1.3686994]
[1756088282455,0.00047857,113630.0,113620.0,1.5203794]
[1756088282700,0.00047857,113630.0,113620.0,0.82964074]
[1756088284059,0.00047857,113630.0,113620.0,0.60693911]
[1756088284481,0.00047857,113630.0,113620.0,0.75861911]
[1756088284666,0.48237994,113650.0,113620.0,0.76742037]
[1756088284905,0.49076466,113650.0,113630.0,0.08688475]
[1756088285112,0.00011,113640.0,113630.0,0.23916475]
[1756088285556,0.00018,113640.0,113630.0,0.23920475]
[1756088285773,0.00842308,113640.0,113630.0,0.23920475]
[1756088285951,0.00835308,113640.0,113630.0,0.23920475]
[1756088286166,0.00824551,113640.0,113630.0,0.4201146]
[1756088286821,0.00835551,113640.0,113630.0,0.4201146]
[1756088287238,0.00824551,113640.0,113630.0,0.4201146]
[1756088287444,0.00835551,113640.0,113630.0,0.4201146]
[1756088287853,0.00824551,113640.0,113630.0,0.4201146]
[1756088288068,0.03462929,113650.0,113630.0,0.4221146]
[1756088288277,0.03462929,113650.0,113630.0,0.4191846]
[1756088288539,0.03462929,113650.0,113640.0,0.00293]
[1756088288791,0.03473929,113650.0,113640.0,0.08688475]
[1756088289278,0.03473929,113650.0,113640.0,0.08981475]
[1756088289686,0.03473929,113650.0,113640.0,0.08688475]
[1756088290742,0.72539795,113650.0,113640.0,0.08688475]
[1756088291198,0.72546795,113650.0,113640.0,0.08688475]
[1756088291415,0.72546795,113650.0,113640.0,0.23956475]
[1756088292288,0.03473929,113650.0,113640.0,0.23956475]
[1756088292496,0.72539795,113650.0,113640.0,0.23956475]
[1756088293345,0.72546795,113650.0,113640.0,0.23956475]
[1756088293563,0.72539795,113650.0,113640.0,0.23956475]
[1756088293985,0.90137683,113650.0,113640.0,0.08688475]
[1756088294236,0.90144683,113650.0,113640.0,0.23956475]
[1756088295923,0.72539795,113650.0,113640.0,0.23956475]
[1756088296152,0.72539795,113650.0,113640.0,0.24249475]
[1756088296806,0.72539795,113650.0,113640.0,0.23956475]
[1756088297665,0.72540286,113650.0,113640.0,0.23956475]
[1756088297899,0.72540286,113650.0,113640.0,0.24249475]
[1756088298369,0.72540286,113650.0,113640.0,0.23956475]
[1756088298583,0.90138174,113650.0,113640.0,0.23956475]
[1756088298800,0.72540286,113650.0,113640.0,0.23956475]
[1756088299020,0.72540286,113650.0,113640.0,0.24249475]
[1756088299241,0.0346342,113650.0,113640.0,0.24446475]
[1756088300101,0.0346342,113650.0,113640.0,0.42045911]
[1756088300305,0.0346342,113650.0,113640.0,0.49156074]
[1756088301010,0.02638183,113650.0,113640.0,0.49156074]
[1756088301229,0.03463508,113650.0,113640.0,0.49156074]
[1756088302106,0.03463508,113650.0,113640.0,0.74156074]
[1756088302318,0.02638183,113650.0,113640.0,0.74156074]
[1756088302550,0.02638183,113650.0,113640.0,0.74256074]
[1756088302759,0.02638183,113650.0,113640.0,0.74356074]
[1756088303601,0.02638183,113650.0,113640.0,0.41488638]
[1756088303808,0.02638183,113650.0,113640.0,0.56720638]
[1756088304227,0.02638183,113650.0,113640.0,0.74320074]
[1756088305132,0.00014348,113650.0,113640.0,0.76064976]
[1756088305372,8e-05,113660.0,113650.0,0.1934279]
[1756088305624,8e-05,113660.0,113650.0,0.35003265]
[1756088305625,0.02585139,113660.0,113650.0,0.35003265]
[1756088305857,0.02585139,113660.0,113650.0,0.35326265]
[1756088306098,8e-05,113660.0,113650.0,0.35326265]
[1756088306798,8e-05,113660.0,113650.0,0.50902265]
[1756088307247,8e-05,113660.0,113650.0,0.75902265]
[1756088307465,8e-05,113660.0,113650.0,0.42728377]
[1756088307692,8e-05,113660.0,113650.0,0.75898265]
[1756088308135,8e-05,113660.0,113650.0,0.58500377]
[1756088308386,0.02647506,113660.0,113650.0,0.58496377]
[1756088308628,8e-05,113660.0,113650.0,0.58496377]
[1756088309054,8e-05,113660.0,113650.0,0.76286265]
[1756088312249,0.02568923,113660.0,113650.0,0.76286265]
[1756088312459,8e-05,113660.0,113650.0,0.58688377]
[1756088312689,8e-05,113660.0,113650.0,0.76286265]
[1756088313608,0.00042,113660.0,113650.0,0.43128377]
[1756088313838,0.00042,113660.0,113650.0,0.56760475]
[1756088313839,0.69107866,113660.0,113650.0,0.56760475]
[1756088314064,0.00042,113660.0,113650.0,0.32083475]
[1756088314275,0.69107866,113660.0,113650.0,0.31760475]
[1756088314480,0.00042,113660.0,113650.0,0.32287475]
[1756088314693,8e-05,113660.0,113650.0,0.32287475]
[1756088315266,0.69107866,113660.0,113650.0,0.32287475]
[1756088315892,0.71652612,113660.0,113650.0,0.32287475]
[1756088316500,8e-05,113660.0,113650.0,0.58740428]
[1756088316713,8e-05,113660.0,113650.0,1.27806294]
[1756088317196,8e-05,113660.0,113650.0,0.83740428]
[1756088320038,8e-05,113660.0,113650.0,1.52806294]
[1756088320219,8e-05,113660.0,113650.0,1.96806294]
[1756088320432,8e-05,113660.0,113650.0,1.99450694]
[1756088320640,8e-05,113660.0,113650.0,2.23434536]
[1756088320846,0.49683,113660.0,113650.0,2.23434536]
[1756088321018,0.49683,113660.0,113650.0,2.23234536]
[1756088321220,0.49683,113660.0,113650.0,2.23434536]
[1756088321435,0.49683,113660.0,113650.0,2.25000536]
[1756088321894,0.49683,113660.0,113650.0,2.25100536]
[1756088322052,0.49683,113660.0,113650.0,2.24800536]
[1756088322253,0.49683,113660.0,113650.0,2.25500536]
[1756088324595,0.0002,113680.0,113670.0,0.17594791]
[1756088324839,0.0002,113680.0,113670.0,1.11437132]
[1756088325089,0.0002,113680.0,113670.0,0.42371266]
[1756088325303,0.0002,113680.0,113670.0,1.11760132]
[1756088325449,0.0002,113680.0,113670.0,1.183906]
[1756088325636,0.0002,113680.0,113670.0,1.183826]
[1756088325841,0.0002,113680.0,113670.0,1.185826]
[1756088326066,0.0002,113680.0,113670.0,1.435826]
[1756088326268,0.0002,113680.0,113670.0,1.277066]
[1756088326486,0.0002,113680.0,113670.0,1.435746]
[1756088326695,0.49703,113680.0,113670.0,1.277066]
[1756088326893,0.49703,113680.0,113670.0,1.435706]
[1756088327101,0.49703,113680.0,113670.0,1.437706]
[1756088330370,0.49703,113680.0,113670.0,0.74704734]
[1756088331413,0.49703,113680.0,113670.0,1.437706]
[1756088331642,0.49703,113680.0,113670.0,0.74704734]
[1756088332568,0.49703,113680.0,113670.0,1.437706]
[1756088334366,0.49703,113680.0,113670.0,0.74704734]
[1756088336093,0.49703,113680.0,113670.0,0.58840734]
[1756088336306,0.49703,113680.0,113670.0,0.74672734]
[1756088336488,0.49703,113680.0,113670.0,0.74652734]
[1756088337026,0.49703,113680.0,113670.0,0.74660734]
[1756088337993,0.49703,113680.0,113670.0,0.74648734]
[1756088338203,0.49703,113680.0,113670.0,0.70662566]
[1756088338412,0.49703,113680.0,113670.0,1.39728432]
[1756088340335,0.49703,113680.0,113670.0,1.39708432]
[1756088340743,0.49703,113680.0,113670.0,1.87740496]
[1756088340963,0.49703,113680.0,113670.0,1.95561781]
[1756088341171,0.49703,113680.0,113670.0,1.26495915]
[1756088341394,0.49703,113680.0,113670.0,1.95561781]
[1756088341607,0.49703,113680.0,113670.0,1.97327781]
[1756088341817,0.49703,113680.0,113670.0,1.97127781]
[1756088342016,0.49703,113680.0,113670.0,1.97427781]
[1756088342849,0.49703,113680.0,113670.0,1.97227781]
[1756088343050,0.49703,113680.0,113670.0,1.97427781]
[1756088343454,0.49703,113680.0,113670.0,2.29332827]
[1756088343666,0.49703,113680.0,113670.0,2.16870704]
[1756088344091,0.49703,113680.0,113670.0,2.32658704]
[1756088344403,0.49703,113680.0,113670.0,2.16370704]
[1756088344615,0.49703,113680.0,113670.0,2.32562704]
[1756088344814,0.49703,113680.0,113670.0,2.33162704]
[1756088345270,0.49703,113680.0,113670.0,2.37146098]
[1756088345485,0.49703,113680.0,113670.0,2.27146098]
[1756088345989,0.49703,113680.0,113670.0,2.37146098]
[1756088346982,0.49703,113680.0,113670.0,2.27146098]
[1756088347194,0.49703,113680.0,113670.0,2.21354098]
[1756088347397,0.49703,113680.0,113670.0,1.52288232]
[1756088347829,0.49703,113680.0,113670.0,2.21354098]
[1756088348030,0.49703,113680.0,113670.0,2.37118098]
[1756088348325,0.49703,113680.0,113670.0,2.37122098]
[1756088348688,0.49703,113680.0,113670.0,2.21354098]
[1756088348957,0.49703,113680.0,113670.0,2.37134098]
[1756088349139,0.49703,113680.0,113670.0,2.14520052]
[1756088349368,0.49703,113680.0,113670.0,1.98740052]
[1756088349687,0.49703,113680.0,113670.0,2.24524052]
[1756088350222,0.49703,113680.0,113670.0,2.14524052]
[1756088351325,0.49905,113680.0,113670.0,1.33876024]
[1756088351583,0.49905,113680.0,113670.0,1.33860024]
[1756088351810,0.49905,113680.0,113670.0,1.91760728]
[1756088352056,0.49905,113680.0,113670.0,2.00812849]
[1756088352733,0.49703,113680.0,113670.0,1.85048849]
[1756088352942,0.49703,113680.0,113670.0,1.31746983]
[1756088353160,0.49703,113680.0,113670.0,2.00812849]
[1756088353510,0.49203,113680.0,113670.0,2.00812849]
[1756088355838,0.49203,113680.0,113670.0,1.31746983]
[1756088356028,0.49203,113680.0,113670.0,2.00812849]
[1756088357660,0.49203,113680.0,113670.0,2.00772849]
[1756088359528,0.49203,113680.0,113670.0,2.00372849]
[1756088359696,0.49203,113680.0,113670.0,2.08209267]
[1756088359913,0.49203,113680.0,113670.0,2.08709267]
[1756088360152,0.49203,113680.0,113670.0,1.39643401]
[1756088360357,0.49203,113680.0,113670.0,2.08709267]
[1756088360556,0.49203,113680.0,113670.0,2.08109267]
[1756088361002,0.49203,113680.0,113670.0,2.08809267]
[1756088362078,0.49203,113680.0,113670.0,2.10263849]
[1756088362940,0.49203,113680.0,113670.0,1.25473983]
[1756088363151,0.49405,113680.0,113670.0,1.92580651]
[1756088363401,0.49405,113680.0,113670.0,1.96476455]
[1756088363816,0.49405,113680.0,113670.0,2.07623617]
[1756088364025,0.49405,113680.0,113670.0,1.91903617]
[1756088364258,0.49405,113680.0,113670.0,2.00433295]
[1756088364468,0.49405,113680.0,113670.0,1.29071308]
[1756088364677,0.49405,113680.0,113670.0,1.98137174]
[1756088364907,0.28440066,113680.0,113670.0,1.98137174]
[1756088365152,0.28440066,113680.0,113670.0,1.29071308]
[1756088365361,0.28440066,113680.0,113670.0,1.98137174]
[1756088365568,0.28238066,113680.0,113670.0,1.98649174]
[1756088365749,0.28450066,113680.0,113670.0,1.97449174]
[1756088365993,0.28450066,113680.0,113670.0,1.98049174]
[1756088366206,0.28450066,113680.0,113670.0,1.98449174]
[1756088366414,0.28238066,113680.0,113670.0,1.98449174]
[1756088366618,0.28238066,113680.0,113670.0,2.00742606]
[1756088366828,0.28238066,113680.0,113670.0,2.00722606]
[1756088369765,0.28238066,113680.0,113670.0,2.00322606]
[1756088369970,0.28238066,113680.0,113670.0,2.09613606]
[1756088370178,0.28238066,113680.0,113670.0,2.10113606]
[1756088371253,0.28238066,113680.0,113670.0,2.09513606]
[1756088371461,0.28238066,113680.0,113670.0,2.19513606]
[1756088371679,0.28238066,113680.0,113670.0,2.22660127]
[1756088371893,0.26475066,113680.0,113670.0,2.30504772]
[1756088372524,0.26475066,113680.0,113670.0,2.30004772]
[1756088372836,0.26475066,113680.0,113670.0,2.29804772]
[1756088373258,0.26475066,113680.0,113670.0,2.30604772]
[1756088373466,0.26475066,113680.0,113670.0,2.30104772]
[1756088373887,0.26475066,113680.0,113670.0,2.30704772]
[1756088374986,0.26475066,113680.0,113670.0,2.34007289]
[1756088376892,0.26475066,113680.0,113670.0,2.33931289]
[1756088377515,0.26475066,113680.0,113670.0,2.55063289]
[1756088378727,0.26475066,113680.0,113670.0,1.70389423]
[1756088378908,0.26475066,113680.0,113670.0,2.55059289]
[1756088379371,0.26475066,113680.0,113670.0,2.29455289]
[1756088379559,0.26475066,113680.0,113670.0,2.45051289]
[1756088379866,0.26475066,113680.0,113670.0,2.45047289]
[1756088380293,0.26475066,113680.0,113670.0,1.75981423]
[1756088380505,0.26475066,113680.0,113670.0,2.45047289]
[1756088381748,0.09822964,113680.0,113670.0,2.29455289]
[1756088381920,0.08059964,113680.0,113670.0,2.52878698]
[1756088382136,0.08059964,113680.0,113670.0,2.33896127]
[1756088383170,0.08059964,113680.0,113670.0,2.29939287]
[1756088383512,0.08059964,113680.0,113670.0,2.14351287]
[1756088383768,0.08059964,113680.0,113670.0,2.29927287]
[1756088385972,0.08059964,113680.0,113670.0,2.39927287]
[1756088387291,0.08059964,113680.0,113670.0,2.39887287]
[1756088387922,0.08059964,113680.0,113670.0,2.24351287]
[1756088388128,0.08059964,113680.0,113670.0,2.29883287]
[1756088388332,0.08059964,113680.0,113670.0,2.39883287]
[1756088388727,0.08059964,113680.0,113670.0,2.43905916]
[1756088389141,0.08059964,113680.0,113670.0,2.41459395]
[1756088391120,0.08059964,113680.0,113670.0,2.25927395]
[1756088391345,0.08059964,113680.0,113670.0,2.41439395]
[1756088391551,0.08059964,113680.0,113670.0,2.41431395]
[1756088391966,0.06296964,113680.0,113670.0,2.41431395]
[1756088392874,0.06296964,113680.0,113670.0,2.25927395]
[1756088393182,0.06296964,113680.0,113670.0,2.41427395]
[1756088393426,0.06296964,113680.0,113670.0,2.41415395]
[1756088396285,0.06499964,113680.0,113670.0,2.30895395]
[1756088396493,0.06499964,113680.0,113670.0,2.15415395]
[1756088396693,0.06499964,113680.0,113670.0,2.30887395]
[1756088396869,0.06800964,113680.0,113670.0,0.99020195]
[1756088397077,0.06800964,113680.0,113670.0,1.14488195]
[1756088397493,0.06800964,113680.0,113670.0,1.16233097]
[1756088397692,0.06800964,113680.0,113670.0,1.14488195]
[1756088397901,0.06800964,113680.0,113670.0,1.11843895]
[1756088398101,0.06800964,113680.0,113670.0,1.12788797]
[1756088398683,0.06800964,113680.0,113670.0,0.97320797]
[1756088398933,0.06800964,113680.0,113670.0,1.12776797]
[1756088399190,0.06800964,113680.0,113670.0,1.13276797]
[1756088399391,0.06499964,113680.0,113670.0,1.82342663]
[1756088399612,0.06296964,113680.0,113670.0,1.82845663]
[1756088399817,0.06296964,113680.0,113670.0,1.8434124]
[1756088400028,0.06296964,113680.0,113670.0,1.8474124]
[1756088400232,0.06296964,113680.0,113670.0,2.1874124]
[1756088401027,0.06499964,113680.0,113670.0,1.49368374]
[1756088401231,0.06499964,113680.0,113670.0,2.1874124]
[1756088401763,0.06499964,113680.0,113670.0,1.48675374]
[1756088401982,0.06499964,113680.0,113670.0,2.1774124]
[1756088402132,0.06499964,113680.0,113670.0,2.1894124]
[1756088402564,0.06296964,113680.0,113670.0,2.1894124]
[1756088403010,0.06296964,113680.0,113670.0,2.1891724]
[1756088403345,0.06296964,113680.0,113670.0,2.0348524]
[1756088403520,0.06296964,113680.0,113670.0,2.1891324]
[1756088403876,0.06296964,113680.0,113670.0,2.0348524]
[1756088404089,0.06499964,113680.0,113670.0,2.1890924]
[1756088404285,0.06499964,113680.0,113670.0,1.52487374]
[1756088404546,0.06499964,113680.0,113670.0,1.51984374]
[1756088404755,0.06499964,113680.0,113670.0,1.36560374]
[1756088404970,0.06800964,113680.0,113670.0,1.49988797]
[1756088405337,0.06800964,113680.0,113670.0,1.32819895]
[1756088405556,0.06800964,113680.0,113670.0,1.45599895]
[1756088405744,0.06800964,113680.0,113670.0,1.47344797]
[1756088405942,0.06800964,113680.0,113670.0,1.46644797]
[1756088406349,0.06800964,113680.0,113670.0,1.31320797]
[1756088406564,0.06800964,113680.0,113670.0,1.47140797]
[1756088406963,0.06800964,113680.0,113670.0,1.49785097]
[1756088408667,0.06800964,113680.0,113670.0,1.34365097]
[1756088408894,0.06800964,113680.0,113670.0,1.49781097]
[1756088409269,0.06800964,113680.0,113670.0,1.34365097]
[1756088409470,0.06800964,113680.0,113670.0,0.97720797]
[1756088409673,0.06800964,113680.0,113670.0,1.11375895]
[1756088410136,0.06800964,113680.0,113670.0,1.10975895]
[1756088410509,0.06800964,113680.0,113670.0,1.11275895]
[1756088411047,0.06800964,113680.0,113670.0,0.95275895]
[1756088411262,0.06800964,113680.0,113670.0,1.10975895]
[1756088412099,0.06800964,113680.0,113670.0,0.95575895]
[1756088412298,0.06800964,113680.0,113670.0,1.10975895]
[1756088412927,0.06499964,113680.0,113670.0,1.10975895]
[1756088418088,0.06499964,113680.0,113670.0,1.11171895]
[1756088418335,0.06499964,113680.0,113670.0,1.07149266]
[1756088419901,0.06499964,113680.0,113670.0,1.07456266]
[1756088420518,0.06499964,113680.0,113670.0,1.06953266]
[1756088421123,0.06499964,113680.0,113670.0,1.07456266]
[1756088421548,0.06499964,113680.0,113670.0,1.06953266]
[1756088421759,0.06296964,113680.0,113670.0,1.07456266]
[1756088422729,0.06499964,113680.0,113670.0,1.07456266]
[1756088423752,0.06296964,113680.0,113670.0,1.07456266]
[1756088424207,0.06499964,113680.0,113670.0,1.07456266]
[1756088424828,0.06296964,113680.0,113670.0,1.07456266]
[1756088425016,0.06282889,113680.0,113670.0,1.07456266]
[1756088425469,0.06282889,113680.0,113670.0,0.86316266]
[1756088426360,0.06324889,113680.0,113670.0,0.70413266]
[1756088426594,0.06324889,113680.0,113670.0,0.85745266]
[1756088427011,0.06324889,113680.0,113670.0,0.85946266]
[1756088427235,0.06324889,113680.0,113670.0,0.70614266]
[1756088427462,0.06324889,113680.0,113670.0,0.85938266]
[1756088427656,0.06329667,113680.0,113670.0,0.89916508]
[1756088428097,0.06329667,113680.0,113670.0,0.90238508]
[1756088428877,0.06287667,113680.0,113670.0,0.90238508]
[1756088430128,0.06287667,113680.0,113670.0,0.90230508]
[1756088431794,0.06287667,113680.0,113670.0,0.90226508]
[1756088432006,0.06503667,113680.0,113670.0,0.90226508]
[1756088432210,0.06287667,113680.0,113670.0,0.90226508]
[1756088432828,0.06814667,113680.0,113670.0,0.74391508]
[1756088433036,0.06287667,113680.0,113670.0,0.90218508]
[1756088433249,0.06287667,113680.0,113670.0,0.74914508]
[1756088433465,0.06287667,113680.0,113670.0,0.90218508]
[1756088433670,0.06287667,113680.0,113670.0,0.90290508]
[1756088433880,0.06287667,113680.0,113670.0,0.74914508]
[1756088434084,0.06287667,113680.0,113670.0,0.90294508]
[1756088435342,0.06503667,113680.0,113670.0,0.89775508]
[1756088435553,0.06287667,113680.0,113670.0,0.90298508]
[1756088437432,0.06287667,113680.0,113670.0,0.90306508]
[1756088440253,0.06287667,113680.0,113670.0,1.95117276]
[1756088440468,0.06287667,113680.0,113670.0,2.06264438]
[1756088440692,0.06287667,113680.0,113670.0,2.08908238]
[1756088440913,0.06287667,113680.0,113670.0,2.08608238]
[1756088441125,0.06287667,113680.0,113670.0,2.08308238]
[1756088441353,0.06287667,113680.0,113670.0,2.08708238]
[1756088441563,0.06287667,113680.0,113670.0,2.09108238]
[1756088441810,0.06287667,113680.0,113670.0,2.08708238]
[1756088442044,0.06287667,113680.0,113670.0,2.08308238]
[1756088442274,0.06287667,113680.0,113670.0,2.11354759]
[1756088442495,0.06287667,113680.0,113670.0,1.39970372]
[1756088442678,0.06287667,113680.0,113670.0,2.09036238]
[1756088442936,0.06287667,113680.0,113670.0,2.09068238]
[1756088443575,0.06287667,113680.0,113670.0,2.09768238]
[1756088445258,0.06287667,113680.0,113670.0,1.2955521]
[1756088445467,0.06287667,113680.0,113670.0,1.98621076]
[1756088448027,0.06287667,113680.0,113670.0,1.2955521]
[1756088448245,0.06287667,113680.0,113670.0,1.98621076]
[1756088449555,0.06287667,113680.0,113670.0,1.2955521]
[1756088449757,0.06287667,113680.0,113670.0,1.98621076]
[1756088450421,0.06287667,113680.0,113670.0,1.98593076]
[1756088450633,0.06287667,113680.0,113670.0,1.98585076]
[1756088451451,0.06287667,113680.0,113670.0,1.2951921]
[1756088451655,0.06287667,113680.0,113670.0,1.98585076]
[1756088452511,0.06287667,113680.0,113670.0,2.24875076]
[1756088453397,0.06287667,113680.0,113670.0,2.24855076]
[1756088453604,0.06287667,113680.0,113670.0,1.5578921]
[1756088453810,0.06287667,113680.0,113670.0,2.24855076]
[1756088454223,0.06287667,113680.0,113670.0,1.5578921]
[1756088454428,0.06287667,113680.0,113670.0,2.23555076]
[1756088454842,0.06287667,113680.0,113670.0,2.24655076]
[1756088457393,0.06287667,113680.0,113670.0,2.09159076]
[1756088457705,0.06287667,113680.0,113670.0,2.24655076]
[1756088459063,0.06287667,113680.0,113670.0,1.5558921]
[1756088459270,0.06287667,113680.0,113670.0,2.24655076]
[1756088461491,0.06287667,113680.0,113670.0,1.5558921]
[1756088461674,0.06287667,113680.0,113670.0,2.24655076]
[1756088461908,0.00304,113700.0,113670.0,2.24655076]
[1756088462125,0.69065866,113710.0,113700.0,0.17590149]
[1756088462330,0.69137644,113710.0,113700.0,0.58526624]
[1756088462802,0.69137644,113710.0,113700.0,0.58522624]
[1756088463006,0.00071778,113710.0,113700.0,0.58522624]
[1756088463217,0.00071778,113710.0,113700.0,0.43042624]
[1756088463218,0.69137644,113710.0,113700.0,0.43042624]
[1756088463429,0.69137644,113710.0,113700.0,0.25652475]
[1756088463631,0.69137644,113710.0,113700.0,0.41124475]
[1756088463833,0.69137644,113710.0,113700.0,0.43242624]
[1756088464035,0.69179644,113710.0,113700.0,0.58714624]
[1756088464925,0.00113778,113710.0,113700.0,0.58914624]
[1756088465118,0.69179644,113710.0,113700.0,0.58914624]
[1756088465570,0.70977733,113710.0,113700.0,0.58914624]
[1756088466624,0.70977733,113710.0,113700.0,0.43442624]
[1756088466838,0.70977733,113710.0,113700.0,0.58902624]
[1756088467465,0.01911867,113710.0,113700.0,0.31296475]
[1756088467724,0.70977733,113710.0,113700.0,0.31296475]
[1756088468198,0.70977733,113710.0,113700.0,0.31096475]
[1756088468425,0.01911867,113710.0,113700.0,0.30896475]
[1756088468652,0.70977733,113710.0,113700.0,0.31096475]
[1756088469810,0.70977733,113710.0,113700.0,0.31196475]
[1756088470690,0.70935733,113710.0,113700.0,0.31196475]
[1756088470895,0.70977733,113710.0,113700.0,0.31176475]
[1756088471108,0.70953098,113710.0,113700.0,0.31176475]
[1756088471323,0.70953098,113710.0,113700.0,0.15752475]
[1756088471537,0.70953098,113710.0,113700.0,0.32938475]
[1756088472668,0.70911098,113710.0,113700.0,0.32938475]
[1756088472894,0.01845232,113710.0,113700.0,0.32938475]
[1756088473118,0.70911098,113710.0,113700.0,0.32938475]
[1756088474955,0.01845232,113710.0,113700.0,0.32938475]
[1756088475446,0.70911098,113710.0,113700.0,0.32938475]
[1756088475866,0.70911098,113710.0,113700.0,0.50528624]
[1756088476307,0.01845232,113710.0,113700.0,0.51061624]
[1756088476522,0.01802867,113710.0,113700.0,0.51061624]
[1756088477378,0.01802867,113710.0,113700.0,0.58171787]
[1756088478276,0.01802867,113710.0,113700.0,0.83171787]
[1756088478487,4.778e-05,113710.0,113700.0,0.83171787]
[1756088479975,4.778e-05,113710.0,113700.0,0.95815687]
[1756088480365,4.778e-05,113710.0,113700.0,0.95615687]
[1756088480631,4.778e-05,113710.0,113700.0,0.95515687]
[1756088481054,4.778e-05,113710.0,113700.0,0.95715687]
[1756088481268,4.778e-05,113710.0,113700.0,0.93949687]
[1756088481445,4.778e-05,113710.0,113700.0,0.94149687]
[1756088482924,4.778e-05,113710.0,113700.0,0.93949687]
[1756088483369,4.778e-05,113710.0,113700.0,0.94149687]
[1756088486993,4.778e-05,113710.0,113700.0,0.87039524]
[1756088487196,4.778e-05,113710.0,113700.0,0.71619524]
[1756088487404,4.778e-05,113710.0,113700.0,0.86995524]
[1756088489071,4.778e-05,113710.0,113700.0,0.71619524]
[1756088489474,4.778e-05,113710.0,113700.0,0.87007524]
[1756088494441,4.778e-05,113710.0,113700.0,0.86987524]
[1756088496024,4.778e-05,113710.0,113700.0,0.86979524]
[1756088496443,4.778e-05,113710.0,113700.0,0.88742524]
[1756088497700,4.778e-05,113710.0,113700.0,0.88738524]
[1756088499668,4.778e-05,113710.0,113700.0,0.88726524]
[1756088501316,4.778e-05,113710.0,113700.0,0.88526524]
[1756088501939,4.778e-05,113710.0,113700.0,0.88626524]
[1756088502346,4.778e-05,113710.0,113700.0,0.88926524]
[1756088504289,4.778e-05,113710.0,113700.0,1.66847455]
[1756088504857,4.778e-05,113710.0,113700.0,1.69470917]
[1756088505259,4.778e-05,113710.0,113700.0,1.00405051]
[1756088505449,4.778e-05,113710.0,113700.0,1.69470917]
[1756088505835,4.778e-05,113710.0,113700.0,1.73354603]
[1756088506035,4.778e-05,113710.0,113700.0,2.09872169]
[1756088506157,4.778e-05,113710.0,113700.0,2.11588676]
[1756088506362,4.778e-05,113710.0,113700.0,2.0907111]
[1756088506575,4.778e-05,113710.0,113700.0,2.0877111]
[1756088506774,4.778e-05,113710.0,113700.0,2.07454603]
[1756088506979,4.778e-05,113710.0,113700.0,1.71709701]
[1756088507263,1.16104044,113750.0,113730.0,0.01763]
[1756088507431,0.69113649,113750.0,113740.0,0.30764475]
[1756088507703,0.02691283,113750.0,113740.0,0.33044475]
[1756088507927,0.00047783,113750.0,113740.0,0.33044475]
[1756088508318,0.00075783,113750.0,113740.0,0.33044475]
[1756088508581,0.00075783,113750.0,113740.0,0.32845475]
[1756088508776,0.00075783,113750.0,113740.0,0.33044475]
[1756088509200,0.00075783,113750.0,113740.0,0.33144475]
[1756088509405,0.00075783,113750.0,113740.0,0.33344475]
[1756088509406,0.00047783,113750.0,113740.0,0.33344475]
[1756088510204,0.00047783,113750.0,113740.0,0.58344475]
[1756088511495,0.01612699,113750.0,113740.0,0.74165438]
[1756088512572,0.00047783,113750.0,113740.0,0.74165438]
[1756088513446,0.00047783,113750.0,113740.0,1.43231304]
[1756088513622,0.00047783,113750.0,113740.0,1.30562004]
[1756088513854,0.00047783,113750.0,113740.0,0.76800138]
[1756088514673,0.00047783,113750.0,113740.0,0.74157438]
[1756088516412,0.00047783,113750.0,113740.0,0.84149438]
[1756088516615,0.00047783,113750.0,113740.0,0.86725008]
[1756088517023,0.00047783,113750.0,113740.0,0.86525008]
[1756088517441,0.00047783,113750.0,113740.0,0.86725008]
[1756088517644,0.00047783,113750.0,113740.0,0.86625008]
[1756088517850,0.00047783,113750.0,113740.0,0.84249438]
[1756088518263,0.00047783,113750.0,113740.0,0.86892138]
[1756088518683,0.00047783,113750.0,113740.0,0.86492138]
[1756088518901,0.00047783,113750.0,113740.0,0.86792138]
[1756088519120,0.00047783,113750.0,113740.0,1.57902906]
[1756088519356,0.00047783,113750.0,113740.0,1.62735178]
[1756088519560,0.00047783,113750.0,113740.0,0.78373312]
[1756088519780,0.00047783,113750.0,113740.0,0.93673312]
[1756088519989,0.00047783,113750.0,113740.0,0.93669312]
[1756088520191,0.00047783,113750.0,113740.0,0.78073312]
[1756088520402,0.00047783,113750.0,113740.0,0.93669312]
[1756088520608,0.00047783,113750.0,113740.0,0.9192441]
[1756088520823,0.00047783,113750.0,113740.0,0.89513926]
[1756088521459,0.00047783,113750.0,113740.0,0.91276926]
[1756088521671,0.00047783,113750.0,113740.0,0.90976926]
[1756088521881,0.00047783,113750.0,113740.0,0.90996926]
[1756088522097,0.00047783,113750.0,113740.0,0.91296926]
[1756088522393,0.00047783,113750.0,113740.0,0.90700926]
[1756088522637,0.00047783,113750.0,113740.0,0.75780926]
[1756088522864,0.00047783,113750.0,113740.0,0.91700926]
[1756088523094,0.00047783,113750.0,113740.0,0.75980926]
[1756088523326,0.00047783,113750.0,113740.0,0.88879138]
[1756088523551,0.00047783,113750.0,113740.0,0.89379138]
[1756088524232,0.00047783,113750.0,113740.0,1.58445004]
[1756088524457,0.00047783,113750.0,113740.0,0.89379138]
[1756088525293,0.00047783,113750.0,113740.0,1.43125004]
[1756088525499,0.00047783,113750.0,113740.0,1.58441004]
[1756088525708,0.00047783,113750.0,113740.0,1.6259639]
[1756088525916,0.00047783,113750.0,113740.0,1.4728039]
[1756088526127,0.00047783,113750.0,113740.0,1.6259639]
[1756088528218,0.00047783,113750.0,113740.0,1.9659639]
[1756088529221,0.00047783,113750.0,113740.0,1.96699774]
[1756088529424,0.00047783,113750.0,113740.0,1.96099774]
[1756088529637,0.00047783,113750.0,113740.0,1.95599774]
[1756088529842,0.00047783,113750.0,113740.0,1.96299774]
[1756088530041,0.00047783,113750.0,113740.0,1.96899774]
[1756088533987,0.02699695,113800.0,113790.0,0.17576236]
[1756088533988,0.00040595,113800.0,113790.0,0.17576236]
[1756088534233,0.69969855,113800.0,113790.0,0.58300711]
[1756088534662,0.69969855,113800.0,113790.0,0.60942211]
[1756088535097,0.71520106,113800.0,113790.0,0.60942211]
[1756088535300,0.00903989,113800.0,113790.0,0.60942211]
[1756088535743,0.00903989,113800.0,113790.0,0.61142211]
[1756088535744,0.69969855,113800.0,113790.0,0.61142211]
[1756088536162,0.69969855,113800.0,113790.0,0.86142211]
[1756088536383,0.00903989,113800.0,113790.0,0.86869211]
[1756088536609,0.00054932,113800.0,113790.0,0.86869211]
[1756088538930,0.00054932,113800.0,113790.0,0.86669211]
[1756088539137,0.00054932,113800.0,113790.0,0.86969211]
[1756088539343,0.00876018,113800.0,113790.0,0.86769211]